Cogmind - Beta 12 @@@ ROGUE MODE // 2023.11.26 @ 23:56:12 // Halloween2019/Abominations Player: Infomantis Result: Self-destructed Performance ------------- Evolutions (1) 500 Regions Visited (2) 400 Robots Destroyed (19) 95 Value Destroyed (492) 492 Prototype IDs (2) 40 Alien Tech Used (0) 0 Bonus (0) 0 TOTAL SCORE: 1527 Bonus ------- None Cogmind --------- Core Integrity 214/400 Matter 300/300 Energy 100/100 System Corruption 0% Temperature Cool (0) Movement Core (350) Ox6 Location -9/Materials Parts ------- > --- POWER (1) -------- (None) > --- PROPULSION (3) --- (None) > --- UTILITY (3) ------ Large Storage Unit Seismic Detector > --- WEAPON (2) ------- (None) > --- INVENTORY (15) --- Ion Engine Ion Engine Improved Ion Engine Wheel Wheel Compact Wheel Compact Wheel Heat Sink Seismic Detector Hacking Suite EM Pulse Cannon EM Pulse Cannon Rocket Launcher Peak State ------------ > --- POWER ------------ Ion Engine > --- PROPULSION ------- Light Treads Aluminum Leg Improved Aluminum Leg > --- UTILITY ---------- Heat Sink Large Storage Unit Seismic Detector > --- WEAPON ----------- Improved Medium Laser Autogun > --- INVENTORY -------- Ion Engine Ion Engine Improved Ion Engine Wheel Compact Wheel Heat Sink Seismic Detector Hacking Suite EM Pulse Cannon EM Pulse Cannon Light Assault Rifle Rocket Launcher [Rating: 15] Favorites ----------- Power Ion Engine Engine Ion Engine Propulsion Aluminum Leg Treads Light Treads Leg Aluminum Leg Utility Seismic Detector Device Seismic Detector Storage Small Storage Unit Weapon Medium Laser Energy Gun Medium Laser Ballistic Gun Autogun Build | -11 -10 -9 ------- Run | Jun Mat Mat Slots Evolved 2 | . . 2 Power . | . . . Propulsion 1 | . . 1 Utility 1 | . . 1 Weapon . | . . . Parts Attached 15 | 7 . 8 Power 1 | 1 . . Engine 1 | 1 . . Core . | . . . Reactor . | . . . Propulsion 4 | 2 . 2 Treads 1 | . . 1 Leg 3 | 2 . 1 Wheel . | . . . Hover . | . . . Flight . | . . . Utility 4 | 2 . 2 Device 2 | 1 . 1 Storage 2 | 1 . 1 Processor . | . . . Hackware . | . . . Protection . | . . . Artifact . | . . . Weapon 6 | 2 . 4 Energy Gun 4 | 1 . 3 Energy Cannon . | . . . Ballistic Gun 2 | 1 . 1 Ballistic Cannon . | . . . Launcher . | . . . Special Weapon . | . . . Impact Weapon . | . . . Slashing Weapon . | . . . Piercing Weapon . | . . . Special Melee Weapon . | . . . Unidentified Prototypes 2 | . . 2 Parts Lost 9 | . . 9 Power 1 | . . 1 Propulsion 4 | . . 4 Utility 1 | . . 1 Weapon 3 | . . 3 Highest Loss Streak 4 | . . 4 To Critical Strikes . | . . . Average Slot Usage (%) 94 | . 100 93 Engine 10 | . 14 9 Treads 8 | . . 9 Leg 22 | . 28 21 Device 18 | . 14 19 Storage 11 | . 14 11 Energy Gun 11 | . 14 11 Ballistic Gun 10 | . 14 10 Naked Turns . | . . . Heaviest Build 33 | 14 14 33 Greatest Support 23 | 20 20 23 Greatest Overweight (x) 2 | . . 2 Average Overweight (x) . | . . . Largest Inventory Capacity 15 | 8 8 15 Average Capacity 10 | 7 8 11 Most Carried 13 | 8 8 13 Average Carried 8 | 5 8 9 Final Capacity 15 | 8 8 15 Final Carried 13 | 8 8 13 Class Distribution -------------------- 100% | Mutant Dominant Class ---------------- Mutant | -10/Materials Mutant | -9/Materials Resources | -11 -10 -9 ----------- Run | Jun Mat Mat Matter Collected 441 | 294 . 147 Remotely . | . . . Salvage Created 706 | 203 . 503 Parts 43 | 13 . 30 Haulers Intercepted 1 | . . 1 Recyclers Shooed 1 | . . 1 Parts Field Recycled . | . . . Retrieved Matter . | . . . Parts Self-Destructed . | . . . Prevented . | . . . Kills | -11 -10 -9 ------- Run | Jun Mat Mat Combat Hostiles Destroyed 8 | . . 8 Guns 8 | . . 8 Classes Destroyed 6 | 2 . 4 Builder 3 | . . 3 Tunneler 5 | 5 . . Hauler 1 | . . 1 Recycler 2 | 1 . 1 Grunt 2 | . . 2 Abomination 6 | . . 6 Best Kill Streak 4 | 4 . 4 Combat Bots Only 3 | . . 3 Max Kills in Single Turn 2 | 1 . 2 Gunslinging . | . . . Exploded . | . . . Melee . | . . . Uniques/NPCs Destroyed . | . . . Combat | -11 -10 -9 -------- Run | Jun Mat Mat Damage Taken 962 | . 17 945 Core 186 | . . 186 Absorbed by Shields . | . . . Core Remaining (%) 100 | 100 100 . Volleys Fired 67 | 24 . 43 Largest 2 | 2 . 2 Hottest 79 | 70 . 79 Shots Fired 131 | 47 . 84 Gun 131 | 47 . 84 Cannon . | . . . Launcher . | . . . Special . | . . . Kinetic 65 | 24 . 41 Thermal 66 | 23 . 43 Explosive . | . . . Electromagnetic . | . . . Robot Hit Streak 15 | 7 . 15 Robot Miss Streak 5 | 5 . 3 Penetration Max . | . . . Secondary Targets 1 | . . 1 Max Gunslinging Chain 1 | . . 1 Shots Hit Robots 86 | 26 . 60 Core Hits 35 | 8 . 27 Critical Kills . | . . . Critical Parts Destroyed 1 | . . 1 Critical Strikes 3 | 1 . 2 Burn 2 | 1 . 1 Destroy 1 | . . 1 Melee Attacks . | . . . Impact . | . . . Slashing . | . . . Piercing . | . . . Sneak Attacks . | . . . Combat Hostiles . | . . . Follow-up Attacks . | . . . Damage Inflicted 1173 | 280 . 893 Guns 1173 | 280 . 893 Cannons . | . . . Explosions . | . . . Melee . | . . . Ramming . | . . . Kinetic 488 | 117 . 371 Thermal 685 | 163 . 522 Explosive . | . . . Electromagnetic . | . . . Impact . | . . . Slashing . | . . . Piercing . | . . . Highest Corruption . | . . . Average Corruption . | . . . Corruption Purged . | . . . Corruption Blocked . | . . . Overload Shots . | . . . Overflow Damage . | . . . Projectiles . | . . . Explosions . | . . . Melee . | . . . Knockbacks . | . . . Impact . | . . . Kinetic . | . . . Secondary . | . . . Self-Inflicted Damage . | . . . Shots . | . . . Rammed . | . . . Targets Rammed 1 | . . 1 Kicked 1 | . . 1 Crushed . | . . . Highest Temperature 190 | 190 . 76 Average Temperature 41 | 73 . 12 Received Heat Transfer 120 | . 9 111 Siege Activations . | . . . Robots Corrupted . | . . . Combat Hostiles . | . . . Parts Fried 2 | . . 2 Impact Corruptions . | . . . Robots Melted . | . . . Combat Hostiles . | . . . Parts Melted 1 | 1 . . Heat Transferred 1374 | 555 . 819 Parts Sabotaged . | . . . Parts Stolen . | . . . Parts Stripped . | . . . Power Chain Reactions . | . . . Missiles Intercepted . | . . . Alert | -11 -10 -9 ------- Run | Jun Mat Mat Peak Influence 85 | 30 49 85 Initial 20 | . 19 20 Average 36 | 14 38 45 Maximum Alert Level . | . . . Low Security (%) 100 | 100 100 100 Level 1 . | . . . Level 2 . | . . . Level 3 . | . . . Level 4 . | . . . Level 5 . | . . . High Security . | . . . Max Security . | . . . Squads Dispatched 1 | . . 1 Investigation . | . . . Extermination . | . . . Reinforcement 1 | . . 1 Assault . | . . . Garrison . | . . . Intercept . | . . . Searches Triggered . | . . . Construction Impeded . | . . . Haulers Reinforced . | . . . Active Scanning Responses . | . . . Cargo Convoy Interrupts . | . . . Stealth | -11 -10 -9 --------- Run | Jun Mat Mat Distress Signals 3 | . 1 2 Communications Jammed . | . . . Distress Signals . | . . . Times Spotted 17 | . 3 14 Peak Tracking Total 3 | . 3 3 Tactical Retreats . | . . . Traps | -11 -10 -9 ------- Run | Jun Mat Mat Traps Triggered . | . . . Indirectly . | . . . Trap Hack Attempts . | . . . Triggered . | . . . Disarmed . | . . . Reprogrammed . | . . . Reused . | . . . Traps Extracted . | . . . Installed . | . . . Triggered . | . . . Machines | -11 -10 -9 ---------- Run | Jun Mat Mat Machines Disabled . | . . . Max in Single Turn . | . . . Machines Repaired . | . . . Machines Sabotaged . | . . . Overloaded Fab Kills . | . . . Hacking | -11 -10 -9 --------- Run | Jun Mat Mat Machines Accessed 3 | . 1 2 Terminals 3 | . 1 2 Fabricators . | . . . Repair Stations . | . . . Recycling Units . | . . . Scanalyzers . | . . . Garrison Access . | . . . Total Hacks 8 | . 3 5 Successful 1 | . . 1 Failed 7 | . 3 4 Catastrophic 1 | . 1 . Database Lockouts . | . . . Manual 3 | . 3 . Terminals 8 | . 3 5 Fabricators . | . . . Repair Stations . | . . . Recycling Units . | . . . Scanalyzers . | . . . Garrison Access . | . . . Terminal Hacks 1 | . . 1 Level Access Points 1 | . . 1 Fabricator Hacks . | . . . Repair Station Hacks . | . . . Recycling Unit Hacks . | . . . Scanalyzer . | . . . Garrison Access Hacks . | . . . Unauthorized Hacks . | . . . Terminals . | . . . Fabricators . | . . . Repair Stations . | . . . Recycling Units . | . . . Scanalyzers . | . . . Garrison Access . | . . . Data Cores Recovered . | . . . Used . | . . . Hacking Detections 3 | . 1 2 Full Trace Events . | . . . Feedback Events . | . . . Feedback Blocked . | . . . Robot Schematics Acquired . | . . . Robots Built . | . . . Authchips . | . . . Time . | . . . Total Robot Build Rating . | . . . Part Schematics Acquired . | . . . Parts Built . | . . . Authchips . | . . . Time . | . . . Total Part Build Rating . | . . . Parts Repaired . | . . . Time . | . . . Parts Recycled . | . . . Recycled Matter . | . . . Retrieved Matter . | . . . Retrieved Components . | . . . Parts Scanalyzed . | . . . Part Schematics Acquired . | . . . Parts Damaged . | . . . Bothacking | -11 -10 -9 ------------ Run | Jun Mat Mat Used RIF Installer . | . . . Robots Hacked . | . . . Non-combat . | . . . Combat . | . . . Robot Hacks Applied . | . . . Relay Couplers Released . | . . . Fabnet Peak Effective % . | . . . Robots Rewired . | . . . Allies Hacked . | . . . Hacks Repelled . | . . . Allies | -11 -10 -9 -------- Run | Jun Mat Mat Total Allies . | . . . Largest Group . | . . . Highest-Rated Group . | . . . Highest-Rated Ally . | . . . Total Orders . | . . . Ally Attacks . | . . . Total Damage . | . . . Kills . | . . . Allies Corrupted . | . . . Allies Melted . | . . . Intel | -11 -10 -9 ------- Run | Jun Mat Mat Robot Analysis Total . | . . . Derelict Logs Recovered . | . . . Drone Launches . | . . . Drone Recoveries . | . . . Exploration | -11 -10 -9 ------------- Run | Jun Mat Mat Turns Passed 896 | 225 88 583 Spaces Moved 468 | 118 74 276 Core 4 | 4 . . Treads . | . . . Legs 464 | 114 74 276 Wheels . | . . . Hover . | . . . Flight . | . . . Fastest Speed 50 | 50 120 120 Average Speed 140 | 117 120 156 Slowest Speed 260 | 120 120 260 Overloaded Moves . | . . . Propulsion Burnouts . | . . . Robots Hopped . | . . . Cave-ins Triggered . | . . . Exploration Rate (%) 17 | 5 27 19 Regions Visited 2 Branch Regions . Pre-discovered Areas . | . . . Known Exits Taken . | . . . Unknown Exits Taken 2 | 1 1 . Scrap Searched . | . . . Spaces Dug . | . . . Terrain Destroyed . | . . . Melee . | . . . Projectile . | . . . AOE . | . . . Terrain Rammed . | . . . Walls Destroyed . | . . . Machines Disabled . | . . . Actions | -11 -10 -9 --------- Run | Jun Mat Mat Total 585 | 159 73 353 Wait 7 | . . 7 Move 466 | 117 73 276 Hop . | . . . Pick Up 20 | 10 . 10 Fast Attach 12 | 6 . 6 Attach 2 | 1 . 1 Detach . | . . . Swap 1 | . . 1 Drop 9 | 1 . 8 Fire 67 | 24 . 43 Melee . | . . . Ram . | . . . Kick 1 | . . 1 Crush . | . . . Escape Stasis . | . . . Rewire . | . . . Trap . | . . . Miscellaneous . | . . . Route ------- -11/Junkyard -10/Materials -9/Materials (discovered 3 exits: *Mat x3) History --------- Turn | Location | Event 2 | -11/Junkyard | Discovered new exit (range 16) 226 | -11/Junkyard | Entered Materials 272 | -10/Materials | Discovered new exit (range 7) 300 | -10/Materials | Discovered new exit (range 12) 314 | -10/Materials | Entered another Materials area 314 | -9/Materials | Evolved 2 slots: Propulsion x1, Utility x1 335 | -9/Materials | Build established: Mutant 340 | -9/Materials | Identified exit to Materials 845 | -9/Materials | Lost 3 parts (1p1n1u) 897 | -9/Materials | Self-destructed Last Messages --------------- 00816_ Destroyed Corrupted Wheel. 00816_ Lesser Abomination destroyed. 00818_ Acquired 13 matter. 00822_ R-06 Scavenger collects Welding Torch. 00828_ R-06 Scavenger collects Corrupted Wheel. 00832_ R-06 Scavenger suffers critical hit (Destroy). 00832_ Destroyed Tractor Beam. 00833_ Acquired 4 matter. 00879_ R-06 Scavenger suffers critical hit (Burn). 00879_ R-06 Scavenger destroyed. 00881_ Lgt. Ion Engine springs to life within a quantum being. 00882_ Lesser Abomination absorbs Terrain Scanner. 00883_ Lesser Abomination absorbs Sml. Storage Unit. 00884_ Acquired Corrupted Wheel. 00885_ Dropped Lgt. Assault Rifle. 00887_ Acquired Com. Wheel. 00892_ Imp. Aluminum Leg destroyed. 00893_ Autogun destroyed. 00894_ Imp. Medium Laser destroyed. 00895_ Aluminum Leg destroyed. Map ----- +----------------------------------------------------+ | | | | | | | | | | | | | | | | | | | | | | | | | | | | | | | | | | | | | | | | | ?????????????????????????????????????????????????? | | ?????????????????????????????????????????????????? | | ??????????????????????#####??????????????????????? | | ??#####################[ ###################????? | | %| A %% ??? | | ???####### % ###### @##### #####??????? | | ?????????# % ]]########## # ?????? | | ?????????# ## + + """ ?##### | | ?????#####+####### ## # ####### """ # # | | ?????# #?# ## ! # #?????# """ # # | | ?????# #?# ]]## ?# #?????# +% # | | ?????# #?# ]]## # #?????# # # | | ?????# #?########## ## ############## # | | ?????###########?????????? ?## ## ###### # | | ??????????????????????######## ! ### ###### | | ?????????????????????## % % % %% !%% % % | | ??????????????????????# <%#### ### %###### | | ??????????????????????#???# ##+## ## ## ## # | | ???????????????????????????# [ [ # +############ | | ???????????????????????????## | # ####### | | ????????????????????????????#[ # # | | ????????????????????????????# %# """ # | | ????????????????????????????####### """"" # """ | | ??????????????????????????????????# """"" # """ | | ??????????????????????????????????+ """"??# """ | | ??????????????????????????????????# "????####### | | ??????????????????????????????????# ???????# | | ??????????????????????????????????# ??????# " | | ??????????????????????????????????####???????# " | | ?????????????????????????????????????????????# " | +----------------------------------------------------+ Best States ------------- Heat Dissipation 38 Energy Generation 10 Energy Capacity 250 Matter Stores 300 Matter Capacity 300 Sight Range 16 Terrain Scan Density 10 Evasion (%) 55 Item Schematics ----------------- None Robot Schematics ------------------ None Fabricated ------------ Nothing Alien Tech Used ----------------- None Achievements -------------- None Challenges ------------ None Game ------ Seed ThunderGravmagSabre Manual? 0 Play Time 00:09:48 Cumulative 361.1 hours Start 2023.11.26 @ 23:50:19 End 2023.11.26 @ 23:56:12 Sessions 1 Manual Loads 0 Difficulty Rogue Special Mode Halloween2019/Abominations Game No. 232 Rogue 209 Adventurer 6 Explorer 17 Win Type - Total 26 Types 18/0/4/1/0/1/1/1/0 Lore% 95 Gallery% 96 Achievement% 79 Wizard Run 0 Options --------- ASCII 0 Keyboard 0 Movement Numpad Keybinds 0 Fullscreen 1 Font 12/Fuzzy Map View 83x54 Tactical HUD 1 Map Filters NONE Filters NONE Steam 1 RUN: 310b8e5f-7d08-4dc1-b96e-a1db120896be